Cogmind - Beta 16 @@@ ROGUE MODE // 2026.01.26 @ 15:01:03 Player: Ev Result: Destroyed by G-50 Soldier with Heavy Laser Performance ------------- Evolutions (5) 2500 Regions Visited (11) 2200 Robots Destroyed (101) 505 Value Destroyed (3430) 3430 Prototype IDs (11) 220 Alien Tech Used (0) 0 Bonus (1234) 1234 TOTAL SCORE: 10089 Bonus ------- High Alert Combat Kills 90 Follower Combat Kills 558 Met Imprinter 300 Was Imprinted 300 Friendly Fire -14 Cogmind --------- Core Integrity 0/1000 Matter 22/300 Energy 17/100 System Corruption 4% Temperature Cool (9) Movement Hovering (60) Location -5/Factory Parts ------- > --- POWER (1) -------- (None) > --- PROPULSION (3) --- Antigrav System Combat Gravmag System > --- UTILITY (9) ------ Targeting Computer Core Analyzer Advanced Cloaking Device Graphene Brace Hacking Suite Hacking Drone Bay (1/1) > --- WEAPON (4) ------- (None) > --- INVENTORY (5) ---- Flexi-carbon Leg Linear Gravjet Matter Filter Improved Weapon Cycler Peak State ------------ > --- POWER ------------ Fission Core > --- PROPULSION ------- Armored Treads Armored Treads Armored Treads > --- UTILITY ---------- Scrap Suit Improved Heat Sink Large Storage Unit Weapon Cycler Heavy Armor Plating Graphene Brace Hardlight Generator > --- WEAPON ----------- Lightning Gun Lightning Gun Smartbomb Launcher > --- INVENTORY -------- Improved Deuterium Engine Armored Treads Improved Energy Well Matter Filter Hacking Suite Improved Hacking Suite Hacking Drone Bay Gatling Laser Flak Cannon Flak Cannon Mining Claw [Rating: 70] Favorites ----------- Power Heavy Ion Engine Engine Heavy Ion Engine Power Core Fission Core Reactor Micro Antimatter Reactor Propulsion Light Treads Treads Light Treads Leg Aluminum Leg Wheel Compact Wheel Hover Unit Hover Unit Utility Targeting Computer Device Scrap Suit Storage Large Storage Unit Processor Targeting Computer Hackware Hacking Suite Protection Utility Shielding Weapon Flak Cannon Energy Gun Lightning Gun Energy Cannon Phase Cannon Ballistic Gun Minigun Ballistic Cannon Flak Cannon Launcher Smartbomb Launcher Special Weapon Improved Plasma Cutter Slashing Weapon Mining Claw Special Melee Weapon Datajack Build | -11 -10 -9 -9 -8 -7 -7 -6 -5 -5 -5 -5 ------- Run | Yrd Mat Mat Min Mat Fac Low Zio Pro Fac Was Fac Slots Evolved 10 | . . 2 . 2 2 . . . 4 . . Power . | . . . . . . . . . . . . Propulsion 1 | . . . . . . . . . 1 . . Utility 7 | . . 2 . 2 1 . . . 2 . . Weapon 2 | . . . . . 1 . . . 1 . . Parts Attached 95 | 6 18 11 1 18 3 . 4 9 20 1 4 Power 11 | 1 4 2 . 1 . . 1 . . 1 1 Engine 7 | 1 3 2 . 1 . . . . . . . Core 2 | . 1 . . . . . 1 . . . . Reactor 2 | . . . . . . . . . . 1 1 Propulsion 28 | 2 6 2 1 7 1 . 1 3 4 . 1 Treads 16 | . 1 2 1 5 1 . 1 3 2 . . Leg 3 | . . . . 2 . . . . 1 . . Wheel 5 | 2 3 . . . . . . . . . . Hover 4 | . 2 . . . . . . . 1 . 1 Flight . | . . . . . . . . . . . . Utility 31 | 1 2 6 . 5 1 . 2 3 9 . 2 Device 10 | . . . . 2 . . 1 2 4 . 1 Storage 3 | 1 1 . . . . . . . 1 . . Processor 4 | . . 1 . 1 . . . . 1 . 1 Hackware 3 | . 1 . . . . . . . 2 . . Protection 11 | . . 5 . 2 1 . 1 1 1 . . Artifact . | . . . . . . . . . . . . Weapon 25 | 2 6 1 . 5 1 . . 3 7 . . Energy Gun 9 | 1 . . . 4 . . . 3 1 . . Energy Cannon 1 | . . . . . . . . . 1 . . Ballistic Gun 9 | 1 5 1 . 1 . . . . 1 . . Ballistic Cannon 2 | . . . . . 1 . . . 1 . . Launcher 1 | . . . . . . . . . 1 . . Special Weapon 1 | . . . . . . . . . 1 . . Impact Weapon . | . . . . . . . . . . . . Slashing Weapon 1 | . . . . . . . . . 1 . . Piercing Weapon . | . . . . . . . . . . . . Special Melee Weapon 1 | . 1 . . . . . . . . . . Unidentified Prototypes 4 | . . . . 1 . . 1 . 2 . . Parts Lost 50 | . 4 3 1 12 . . . 4 24 . 2 Power 5 | . 1 . . 1 . . . . 1 . 2 Propulsion 11 | . 2 1 1 3 . . . . 4 . . Utility 15 | . . 1 . 3 . . . 3 8 . . Weapon 19 | . 1 1 . 5 . . . 1 11 . . Highest Loss Streak 17 | . 2 3 1 6 . . . 3 17 . 1 To Critical Strikes 3 | . 1 . . . . . . . 2 . . Average Backups 11 | 1 8 10 12 10 12 14 14 12 8 3 4 Power . | . 1 . 1 . 1 1 1 1 . . . Propulsion . | . 1 1 1 . . 1 . 1 . 1 1 Utility 6 | . 2 3 4 6 7 7 8 6 4 2 2 Weapon 3 | . 2 3 4 2 3 4 4 3 2 . . Tool/Special . | . . . . . . . . . . . . Unused Backups 17 | . 2 3 . 6 . . 3 . 1 . 2 Power 4 | . . 1 . 1 . . 1 . 1 . . Propulsion 1 | . . . . . . . . . . . 1 Utility 6 | . . 1 . 2 . . 2 . . . 1 Weapon 6 | . 2 1 . 3 . . . . . . . Tool/Special . | . . . . . . . . . . . . Average Slot Usage (%) 86 | . 98 98 100 88 91 92 87 82 63 32 47 Engine 5 | . 8 7 11 8 7 7 3 . . . . Core 2 | . 5 3 . . . . 3 7 3 . . Treads 12 | . . 16 22 13 15 15 15 14 11 . . Wheel 2 | . 16 4 . . . . . . . . . Hover 1 | . 10 . . . . . . . . 5 8 Device 9 | . . . . 13 7 7 7 18 20 11 16 Storage 8 | . 14 11 11 9 7 7 7 7 3 . . Processor 7 | . . 10 11 11 15 15 10 1 2 5 10 Hackware 3 | . 13 11 11 1 . . . . 1 5 5 Protection 9 | . . 11 11 9 15 15 15 8 3 . . Energy Gun 5 | . 4 . . 9 . . . 16 7 . . Ballistic Gun 8 | . 23 21 22 5 7 7 7 1 . . . Ballistic Cannon 5 | . . . . 1 14 15 15 4 2 . . Peak Build Rating 70 | 6 12 18 18 31 35 35 50 57 70 34 56 Average Rating 34 | 3 10 14 17 28 32 35 43 49 50 29 50 On Entrance 26 | . 6 12 18 18 27 35 35 50 49 29 34 Avg Prop Armor Cover (%) 15 | . 11 . . . . . . . 19 . 6 Naked Turns . | . . . . . . . . . . . . Heaviest Build 77 | 13 29 40 40 49 53 53 65 65 77 10 23 Greatest Support 60 | 26 32 43 43 43 48 48 56 56 60 11 25 Greatest Overweight (x) 13 | . 2 1 . 13 1 1 1 2 10 . . Average Overweight (x) . | . . . . 1 1 1 . 1 . . . Largest Inventory Capacity 15 | 8 15 15 15 15 15 15 15 15 15 5 5 Average Capacity 14 | 7 12 15 15 15 15 15 15 15 12 5 5 Most Carried 15 | 4 12 13 14 15 14 15 15 15 12 5 5 Average Carried 11 | 1 9 10 12 10 12 14 14 12 7 3 3 Final Capacity 15 | 8 15 15 15 15 15 15 15 15 5 5 5 Final Carried 15 | 2 11 12 13 13 14 15 15 12 2 5 4 Scrap Suit Usage (%) 70 | . . . . 100 100 100 100 98 58 . . Parts Cannibalized 17 | . . . . 10 1 . . 1 5 . . Class Distribution -------------------- 29% | Mutant 19% | Scavenger-Mutant 18% | Tank 17% | Gunner 12% | Scavenger-Tank Dominant Class ---------------- Scavenger-Mutant | -10/Materials Scavenger-Mutant | -9/Materials Mutant | -9/Mines Mutant | -8/Materials Gunner | -7/Factory Gunner | -7/Lower Caves Tank | -6/Zion Scavenger-Tank | -5/Proximity Caves Scavenger-Tank | -5/Factory Scavenger-Mutant | -5/Waste Scavenger-Mutant | -5/Factory Resources | -11 -10 -9 -9 -8 -7 -7 -6 -5 -5 -5 -5 ----------- Run | Yrd Mat Mat Min Mat Fac Low Zio Pro Fac Was Fac Matter Collected 2562 | 197 570 356 108 380 20 92 64 243 532 . . Remotely 21 | . . . . . . . . . 21 . . Salvage Created 3721 | . 527 362 229 1436 20 . . 435 712 . . Parts 208 | . 44 27 10 82 . . . 8 37 . . Haulers Intercepted 7 | . 1 1 . 5 . . . . . . . Recyclers Shooed 4 | . 2 . . . . . . . 2 . . Parts Field Recycled . | . . . . . . . . . . . . Retrieved Matter . | . . . . . . . . . . . . Parts Self-Destructed 22 | . . . . . . 10 . 12 . . . Prevented 10 | . . . . . . . . 10 . . . Parts Restored . | . . . . . . . . . . . . Kills | -11 -10 -9 -9 -8 -7 -7 -6 -5 -5 -5 -5 ------- Run | Yrd Mat Mat Min Mat Fac Low Zio Pro Fac Was Fac Combat Hostiles Destroyed 69 | . 7 7 5 24 2 . . 8 16 . . Guns 51 | . 7 7 5 23 . . . 2 7 . . Cannons 8 | . . . . . 2 . . 5 1 . . AOE 8 | . . . . . . . . . 8 . . Classes Destroyed 18 | . 9 2 1 3 . . . 1 2 . . Worker 7 | . . 1 . 2 . . . . 4 . . Builder 2 | . 1 . . 1 . . . . . . . Tunneler 1 | . 1 . . . . . . . . . . Hauler 7 | . 1 1 . 5 . . . . . . . Recycler 2 | . 2 . . . . . . . . . . Mechanic 1 | . . . . . . . . . 1 . . Operator 3 | . 2 . . . . . . . 1 . . Watcher 9 | . 2 2 . 2 . . . . 3 . . Swarmer 13 | . 2 3 . 6 . . . 1 1 . . Grunt 29 | . 3 . 4 10 . . . 4 8 . . Brawler 1 | . . . . . . . . 1 . . . Duelist 2 | . . . 1 . . . . 1 . . . Sentry 10 | . . 4 . 4 . . . 1 1 . . Specialist 2 | . . . . 2 . . . . . . . Hunter 8 | . . . . 1 2 . . . 5 . . Programmer 1 | . . . . . . . . . 1 . . Heavy 1 | . . . . 1 . . . . . . . Subdweller 2 | . 2 . . . . . . . . . . Best Kill Streak 18 | . 2 6 2 5 2 . . 3 18 . . Combat Bots Only 10 | . 2 5 2 4 2 . . 3 10 . . Max Kills in Single Turn 3 | . 1 1 1 2 1 . . 3 2 . . Gunslinging 1 | . . . . 1 . . . . . . . Exploded 2 | . . . . . . . . . 2 . . Melee . | . . . . . . . . . . . . Uniques/NPCs Destroyed . | . . . . . . . . . . . . Combat | -11 -10 -9 -9 -8 -7 -7 -6 -5 -5 -5 -5 -------- Run | Yrd Mat Mat Min Mat Fac Low Zio Pro Fac Was Fac Hostile Shots Fired 768 | . 65 84 23 158 12 . . 82 328 . 16 Missed 230 | . 17 32 4 39 3 . . 21 104 . 10 Hits 538 | . 48 52 19 119 9 . . 61 224 . 6 Melee 2 | . . . . . . . . 2 . . . Projectile 536 | . 48 52 19 119 9 . . 59 224 . 6 Critical Strikes 20 | . 1 1 2 6 1 . . 4 5 . . Actively Blocked 1 | . . . . . 1 . . . . . . Damage Taken 8920 | . 594 623 267 2301 146 . . 1254 3614 . 121 Core 1885 | . 102 64 51 474 13 . . 162 999 . 20 Absorbed by Shields 208 | . . . . . . . . . 208 . . Redirected to Shielding 198 | . . 30 . . 11 . . 15 142 . . Regen/Repaired (Parts) 315 | . . 96 . 99 10 . 59 7 44 . . Core Remaining (%) 63 | 100 59 . 71 13 . . . 75 . . . Volleys Fired 323 | . 75 33 16 102 6 . . 20 71 . . Largest 3 | . 2 2 2 2 3 . . 3 3 . . Hottest 190 | . 60 40 40 138 99 . . 190 154 . . Shots Fired 605 | . 149 66 32 179 18 . . 60 101 . . Gun 529 | . 149 66 32 178 6 . . 40 58 . . Cannon 51 | . . . . 1 12 . . 20 18 . . Launcher 24 | . . . . . . . . . 24 . . Special 1 | . . . . . . . . . 1 . . Kinetic 358 | . 117 66 32 68 18 . . 29 28 . . Thermal 166 | . 32 . . 111 . . . 11 12 . . Explosive 24 | . . . . . . . . . 24 . . Electromagnetic 57 | . . . . . . . . 20 37 . . Robot Hit Streak 23 | . 16 9 19 23 10 . . 9 13 . . Robot Miss Streak 14 | . 6 4 1 3 6 . . 5 14 . . Penetration Max . | . . . . . . . . . . . . Secondary Targets 11 | . 2 2 . 5 . . . 1 1 . . Max Gunslinging Chain 1 | . 1 1 . 1 . . . 1 1 . . Shots Hit Robots 425 | . 92 45 28 134 12 . . 45 69 . . Core Hits 267 | . 33 16 12 61 13 . . 50 82 . . Critical Kills . | . . . . . . . . . . . . Critical Parts Destroyed 2 | . 2 . . . . . . . . . . Critical Strikes 10 | . 2 . . 7 . . . . 1 . . Burn 7 | . . . . 7 . . . . . . . Destroy 2 | . 2 . . . . . . . . . . Corrupt 1 | . . . . . . . . . 1 . . Melee Attacks 2 | . 1 . . . . . . . 1 . . Impact . | . . . . . . . . . . . . Slashing 1 | . . . . . . . . . 1 . . Piercing . | . . . . . . . . . . . . Sneak Attacks . | . . . . . . . . . . . . Combat Hostiles . | . . . . . . . . . . . . Follow-up Attacks . | . . . . . . . . . . . . Damage Inflicted 9762 | . 1007 564 374 2289 191 . . 1026 4311 . . Guns 5568 | . 1007 564 374 2289 22 . . 556 756 . . Cannons 1086 | . . . . . 169 . . 470 447 . . Explosions 3067 | . . . . . . . . . 3067 . . Melee 23 | . . . . . . . . . 23 . . Ramming . | . . . . . . . . . . . . Kinetic 3756 | . 785 564 374 725 191 . . 569 548 . . Thermal 2425 | . 222 . . 1564 . . . 230 409 . . Explosive 2933 | . . . . . . . . . 2933 . . Electromagnetic 625 | . . . . . . . . 227 398 . . Impact . | . . . . . . . . . . . . Slashing 23 | . . . . . . . . . 23 . . Piercing . | . . . . . . . . . . . . Highest Corruption 8 | . . . . . . . . 8 3 3 4 Average Corruption 5 | . . . . . . . . 7 2 3 3 Corruption Purged . | . . . . . . . . . . . . Corruption Blocked . | . . . . . . . . . . . . Effects 38 | . . . . . . . . 30 4 2 2 Message Errors 7 | . . . . . . . . 6 . . 1 Matter Fused 10 | . . . . . . . . 7 3 . . Heat Flow Errors 6 | . . . . . . . . 5 . 1 . Energy Discharges 7 | . . . . . . . . 6 . 1 . Parts Fused 1 | . . . . . . . . 1 . . . Data Loss (minor) 2 | . . . . . . . . 2 . . . Data Loss (major) 3 | . . . . . . . . 1 1 . 1 Misfires 1 | . . . . . . . . 1 . . . Weapon Failures 1 | . . . . . . . . 1 . . . Overload Shots . | . . . . . . . . . . . . Overflow Damage 63 | . . . . . . . . . 63 . . Projectiles . | . . . . . . . . . . . . Explosions 63 | . . . . . . . . . 63 . . Melee . | . . . . . . . . . . . . Knockbacks 19 | . . . . . 6 . . 9 4 . . Impact . | . . . . . . . . . . . . Kinetic 17 | . . . . . 5 . . 8 4 . . Secondary 2 | . . . . . 1 . . 1 . . . Self-Inflicted Damage 203 | . . . . . . . . . 203 . . Shots 3 | . . . . . . . . . 3 . . Rammed . | . . . . . . . . . . . . Targets Rammed . | . . . . . . . . . . . . Kicked . | . . . . . . . . . . . . Crushed . | . . . . . . . . . . . . Highest Temperature 360 | . 105 23 73 360 180 . . 320 176 218 . Average Temperature 70 | . 20 6 52 75 90 . . 126 43 113 . Received Heat Transfer 1706 | . 93 159 186 594 . . . 378 251 . 45 Effects 5 | . . . . 1 . . . 4 . . . Shutdowns 1 | . . . . 1 . . . . . . . Energy Bleed 1 | . . . . . . . . 1 . . . Interference 3 | . . . . . . . . 3 . . . Siege Activations . | . . . . . . . . . . . . Martial Activations . | . . . . . . . . . . . . Shielding Activations . | . . . . . . . . . . . . Robots Disrupted 2 | . . . . . . . . . 2 . . Combat Hostiles 2 | . . . . . . . . . 2 . . Robots Corrupted 1 | . . . . . . . . 1 . . . Combat Hostiles 1 | . . . . . . . . 1 . . . Parts Fried 4 | . 1 . . . . . . 2 1 . . Impact Corruptions . | . . . . . . . . . . . . Robots Melted 1 | . . . . 1 . . . . . . . Combat Hostiles 1 | . . . . 1 . . . . . . . Parts Melted 12 | . 1 . . 11 . . . . . . . Heat Transferred 5361 | . 500 . . 3700 . . . 525 636 . . Parts Sabotaged . | . . . . . . . . . . . . Parts Stolen . | . . . . . . . . . . . . Parts Stripped . | . . . . . . . . . . . . Power Chain Reactions 1 | . . . . . . . . . 1 . . Alert | -11 -10 -9 -9 -8 -7 -7 -6 -5 -5 -5 -5 ------- Run | Yrd Mat Mat Min Mat Fac Low Zio Pro Fac Was Fac Maximum Alert Level 2 | . . . . 1 . . . . 2 . . Low Security (%) 87 | 100 100 100 100 85 100 . . . 57 100 100 Level 1 5 | . . . . 14 . . . . 2 . . Level 2 6 | . . . . . . . . . 40 . . Level 3 . | . . . . . . . . . . . . Level 4 . | . . . . . . . . . . . . Level 5 . | . . . . . . . . . . . . High Security . | . . . . . . . . . . . . Max Security . | . . . . . . . . . . . . Peak Influence 599 | . 40 95 60 260 70 . . . 599 156 93 Initial 156 | . . . . . 60 . . . . 156 88 Average 98 | . 8 38 22 137 16 . . . 236 142 76 Influence Increases 3089 | . 226 245 120 821 80 . . 467 1085 . 45 Destroy 0b10 Robot/C 1640 | . 100 140 100 520 40 . . 300 440 . . Destroy 0b10 Robot/NC 160 | . 45 20 . 50 . . . . 45 . . Destroy Leader 382 | . 36 56 20 144 10 . . 20 96 . . Allied During Kill 147 | . . . . 7 . . . 102 38 . . Successful Hack 83 | . 45 29 . 9 . . . . . . . Select Force Hacks 30 | . . . . . 30 . . . . . . Disable Machine 150 | . . . . 60 . . . . 90 . . Destroy Structure 317 | . . . . 1 . . . . 316 . . Partial Spotted 15 | . . . . . . . . . . . 15 Lose Combat Pursuer 165 | . . . . 30 . . . 45 60 . 30 Influence Decreases 3026 | . 226 245 120 687 214 . . 467 637 322 108 Entered New Map 404 | . . . . . 74 . . . . 292 38 Time Decay 1958 | . 216 225 120 527 140 . . 347 303 30 50 Lost Part 450 | . 10 20 . 120 . . . 40 240 . 20 Lost Ally 214 | . . . . 40 . . . 80 94 . . Squads Dispatched 17 | . 1 . . 5 2 . . 1 8 . . Investigation 2 | . . . . 1 1 . . . . . . Extermination 3 | . . . . . 1 . . . 2 . . Reinforcement 8 | . 1 . . 4 . . . . 3 . . Assault 1 | . . . . . . . . 1 . . . Garrison 3 | . . . . . . . . . 3 . . Intercept . | . . . . . . . . . . . . Searches Triggered . | . . . . . . . . . . . . Construction Impeded 1 | . . . . . . . . . 1 . . Haulers Reinforced 1 | . . . . . . . . . 1 . . Active Scanning Responses . | . . . . . . . . . . . . Cargo Convoy Interrupts . | . . . . . . . . . . . . Stealth | -11 -10 -9 -9 -8 -7 -7 -6 -5 -5 -5 -5 --------- Run | Yrd Mat Mat Min Mat Fac Low Zio Pro Fac Was Fac Distress Signals 9 | . 1 . . 2 . . . . 6 . . Communications Jammed . | . . . . . . . . . . . . Distress Signals . | . . . . . . . . . . . . Times Spotted 140 | . 21 13 5 30 2 . . 19 38 5 7 Peak Tracking Total 8 | . 4 6 3 4 2 . . 7 8 5 5 Tactical Retreats 11 | . 2 . . 2 . . . 2 4 . 1 Traps | -11 -10 -9 -9 -8 -7 -7 -6 -5 -5 -5 -5 ------- Run | Yrd Mat Mat Min Mat Fac Low Zio Pro Fac Was Fac Traps Triggered 3 | . . 1 . . . . . . 1 . 1 Indirectly . | . . . . . . . . . . . . Trap Hack Attempts . | . . . . . . . . . . . . Triggered . | . . . . . . . . . . . . Disarmed . | . . . . . . . . . . . . Reprogrammed . | . . . . . . . . . . . . Reused . | . . . . . . . . . . . . Traps Extracted . | . . . . . . . . . . . . Installed . | . . . . . . . . . . . . Triggered . | . . . . . . . . . . . . Machines | -11 -10 -9 -9 -8 -7 -7 -6 -5 -5 -5 -5 ---------- Run | Yrd Mat Mat Min Mat Fac Low Zio Pro Fac Was Fac Machines Disabled 10 | . . . . 4 . . . . 6 . . Max in Single Turn 3 | . . . . 1 . . . . 3 . . Garrison Access 1 | . . . . 1 . . . . . . . Machines Repaired . | . . . . . . . . . . . . Machines Dismantled . | . . . . . . . . . . . . Machines Sabotaged . | . . . . . . . . . . . . Overloaded Fab Kills . | . . . . . . . . . . . . Hacking | -11 -10 -9 -9 -8 -7 -7 -6 -5 -5 -5 -5 --------- Run | Yrd Mat Mat Min Mat Fac Low Zio Pro Fac Was Fac Machines Accessed 15 | . 7 4 . 3 1 . . . . . . Terminals 11 | . 7 2 . 2 . . . . . . . Fabricators . | . . . . . . . . . . . . Repair Stations 1 | . . 1 . . . . . . . . . Recycling Units 1 | . . . . . 1 . . . . . . Scanalyzers 1 | . . 1 . . . . . . . . . Garrison Access 1 | . . . . 1 . . . . . . . Total Hacks 49 | . 26 15 . 7 1 . . . . . . Successful 31 | . 17 9 . 4 1 . . . . . . Failed 18 | . 9 6 . 3 . . . . . . . Catastrophic . | . . . . . . . . . . . . Database Lockouts . | . . . . . . . . . . . . Manual 33 | . 12 9 . 4 1 . . . 7 . . Terminals 41 | . 26 9 . 6 . . . . . . . Fabricators . | . . . . . . . . . . . . Repair Stations 2 | . . 2 . . . . . . . . . Recycling Units 1 | . . . . . 1 . . . . . . Scanalyzers 4 | . . 4 . . . . . . . . . Garrison Access 1 | . . . . 1 . . . . . . . Terminal Hacks 14 | . 12 1 . 1 . . . . . . . Prototype ID Bank 5 | . 5 . . . . . . . . . . Alert Level 2 | . 2 . . . . . . . . . . Locate Traps 4 | . 2 1 . 1 . . . . . . . Investigation Status 1 | . 1 . . . . . . . . . . Zone Layout 2 | . 2 . . . . . . . . . . Fabricator Hacks . | . . . . . . . . . . . . Repair Station Hacks 2 | . . 2 . . . . . . . . . Scan Component 1 | . . 1 . . . . . . . . . Repair 1 | . . 1 . . . . . . . . . Recycling Unit Hacks . | . . . . . . . . . . . . Scanalyzer 2 | . . 2 . . . . . . . . . Retrieve Study 2 | . . 2 . . . . . . . . . Garrison Access Hacks 1 | . . . . 1 . . . . . . . Seal Access 1 | . . . . 1 . . . . . . . Unauthorized Hacks 12 | . 5 4 . 2 1 . . . . . . Terminals 11 | . 5 4 . 2 . . . . . . . Track 2 | . 1 1 . . . . . . . . . Botnet 6 | . 3 2 . 1 . . . . . . . Operators 3 | . 1 1 . 1 . . . . . . . Fabricators . | . . . . . . . . . . . . Repair Stations . | . . . . . . . . . . . . Recycling Units 1 | . . . . . 1 . . . . . . Tunnel 1 | . . . . . 1 . . . . . . Scanalyzers . | . . . . . . . . . . . . Garrison Access . | . . . . . . . . . . . . Data Cores Recovered 2 | . 2 . . . . . . . . . . Used 1 | . 1 . . . . . . . . . . Hacking Detections 13 | . 7 4 . 2 . . . . . . . Full Trace Events 1 | . 1 . . . . . . . . . . Feedback Events . | . . . . . . . . . . . . Feedback Blocked . | . . . . . . . . . . . . Robot Schematics Acquired . | . . . . . . . . . . . . Robots Built . | . . . . . . . . . . . . Authchips . | . . . . . . . . . . . . Time . | . . . . . . . . . . . . Total Robot Build Rating . | . . . . . . . . . . . . Part Schematics Acquired . | . . . . . . . . . . . . Parts Built . | . . . . . . . . . . . . Authchips . | . . . . . . . . . . . . Time . | . . . . . . . . . . . . Total Part Build Rating . | . . . . . . . . . . . . Part Studies Acquired 2 | . . 2 . . . . . . . . . Parts Repaired 1 | . . 1 . . . . . . . . . Time 13 | . . 13 . . . . . . . . . Parts Recycled . | . . . . . . . . . . . . Recycled Matter . | . . . . . . . . . . . . Retrieved Matter . | . . . . . . . . . . . . Retrieved Components . | . . . . . . . . . . . . Parts Scanalyzed . | . . . . . . . . . . . . Part Schematics Acquired . | . . . . . . . . . . . . Parts Damaged . | . . . . . . . . . . . . Bothacking | -11 -10 -9 -9 -8 -7 -7 -6 -5 -5 -5 -5 ------------ Run | Yrd Mat Mat Min Mat Fac Low Zio Pro Fac Was Fac Used RIF Installer . | . . . . . . . . . . . . Robots Hacked 1 | . 1 . . . . . . . . . . Non-combat . | . . . . . . . . . . . . Combat 1 | . 1 . . . . . . . . . . Robot Hacks Applied 1 | . 1 . . . . . . . . . . parse_system 1 | . 1 . . . . . . . . . . Relay Couplers Released . | . . . . . . . . . . . . Fabnet Peak Effective % . | . . . . . . . . . . . . Robots Rewired . | . . . . . . . . . . . . Allies Hacked 2 | . . . . . . . . . 2 . . Hacks Repelled . | . . . . . . . . . . . . Allies | -11 -10 -9 -9 -8 -7 -7 -6 -5 -5 -5 -5 -------- Run | Yrd Mat Mat Min Mat Fac Low Zio Pro Fac Was Fac Total Allies 13 | . . . 2 . . . 4 . 7 . . Largest Group 4 | . . . 2 2 . . 4 4 4 . . Highest-Rated Group 210 | . . . 37 37 . . 150 150 210 . . Highest-Rated Ally 70 | . . . 31 31 . . 39 39 70 . . Zionite Dispatches 2 | . . . . . . . . . 2 . . Light 1 | . . . . . . . . . 1 . . Fire 1 | . . . . . . . . . 1 . . Total Orders . | . . . . . . . . . . . . Ally Attacks 86 | . . . . 8 . . . 34 44 . . Total Damage 1893 | . . . . 63 . . . 1058 772 . . Kills 15 | . . . . 2 . . . 7 6 . . Allies Corrupted . | . . . . . . . . . . . . Allies Melted . | . . . . . . . . . . . . Intel | -11 -10 -9 -9 -8 -7 -7 -6 -5 -5 -5 -5 ------- Run | Yrd Mat Mat Min Mat Fac Low Zio Pro Fac Was Fac Active Infowar (turns) 97 | . . . . . . . . . . . 97 Cloaking 97 | . . . . . . . . . . . 97 Robot Analysis Total . | . . . . . . . . . . . . Derelict Logs Recovered 2 | . . . . . . . 1 1 . . . Drone Launches . | . . . . . . . . . . . . Drone Recoveries . | . . . . . . . . . . . . Zionite Intel Received 1 | . . . . . . . . . 1 . . Depthwide Sectors/0 1 | . . . . . . . . . 1 . . Exploration | -11 -10 -9 -9 -8 -7 -7 -6 -5 -5 -5 -5 ------------- Run | Yrd Mat Mat Min Mat Fac Low Zio Pro Fac Was Fac Turns Passed 8441 | 45 991 578 290 1775 555 85 2126 904 910 71 111 Spaces Moved 4001 | 38 777 279 147 608 221 36 858 323 451 111 152 Core 41 | 6 . . . 1 . . . . 34 . . Treads 2389 | . . 210 147 400 221 36 858 323 194 . . Legs 213 | . . . . 207 . . . . 6 . . Wheels 513 | 32 412 69 . . . . . . . . . Hover 845 | . 365 . . . . . . . 217 111 152 Flight . | . . . . . . . . . . . . Fastest Speed 50 | 50 56 105 160 190 240 240 160 250 50 60 60 Average Speed 175 | 83 82 146 160 224 240 240 244 251 145 60 62 Slowest Speed 700 | 90 115 160 160 700 240 240 250 360 550 60 66 Overloaded Moves . | . . . . . . . . . . . . Propulsion Burnouts . | . . . . . . . . . . . . Robots Hopped . | . . . . . . . . . . . . Potential Cave-ins . | . . . . . . . . . . . . Cave-ins Triggered . | . . . . . . . . . . . . Exploration Rate (%) 37 | 3 97 26 45 36 6 10 86 55 12 65 4 Regions Visited 11 Branch Regions 4 Pre-discovered Areas 13 | . . . . . 1 . 3 . 9 . . Known Exits Taken . | . . . . . . . . . . . . Unknown Exits Taken 9 | 1 1 1 1 1 1 1 1 1 . . . Scrap Searched 7 | . . . 1 . . 2 3 1 . . . Spaces Dug . | . . . . . . . . . . . . Terrain Destroyed 195 | . . . . . . . . . 195 . . Melee . | . . . . . . . . . . . . Projectile 3 | . . . . . . . . . 3 . . AOE 191 | . . . . . . . . . 191 . . Terrain Rammed . | . . . . . . . . . . . . Walls Destroyed . | . . . . . . . . . . . . Machines Disabled . | . . . . . . . . . . . . Actions | -11 -10 -9 -9 -8 -7 -7 -6 -5 -5 -5 -5 --------- Run | Yrd Mat Mat Min Mat Fac Low Zio Pro Fac Was Fac Total 4872 | 51 986 384 170 844 234 36 886 376 623 115 167 Wait 272 | . 65 31 6 80 . . 12 15 58 . 5 Move 3991 | 37 776 278 146 607 220 35 857 322 451 110 152 Hop . | . . . . . . . . . . . . Pick Up 105 | 8 25 18 1 25 4 1 4 6 7 3 3 Fast Attach 7 | . 1 . . . . . 1 . 5 . . Attach 68 | 6 9 8 1 12 2 . . 5 19 1 5 Detach 6 | . 1 . . . . . . . 3 1 1 Swap 47 | . 20 6 . 7 1 . 4 4 4 . 1 Drop 49 | . 13 10 . 11 1 . 8 4 2 . . Fire 323 | . 75 33 16 102 6 . . 20 71 . . Melee 2 | . 1 . . . . . . . 1 . . Ram . | . . . . . . . . . . . . Kick . | . . . . . . . . . . . . Crush . | . . . . . . . . . . . . Escape Stasis . | . . . . . . . . . . . . Rewire 2 | . . . . . . . . . 2 . . Trap . | . . . . . . . . . . . . Miscellaneous . | . . . . . . . . . . . . Route ------- -11/Scrapyard -10/Materials (discovered 4 exits: *Mat x3 / [*Min]) -9/Materials -9/Mines -8/Materials -7/Factory (discovered 2 exits: [*Fac] / [*Low]) -7/Lower Caves -6/Zion -5/Proximity Caves -5/Factory -5/Waste -5/Factory History --------- Turn | Location | Event 5 | -11/Scrapyard | Discovered new exit (range 16) 46 | -11/Scrapyard | Entered Materials 308 | -10/Materials | Discovered new exit (range 15) 410 | -10/Materials | Discovered new exit (range 16) 546 | -10/Materials | Derelicts attacked the area 583 | -10/Materials | Discovered new exit (range 14) 958 | -10/Materials | Discovered new exit (range 4) 1037 | -10/Materials | Entered another Materials area 1037 | -9/Materials | Evolved 2 slots: Utility x2 1059 | -9/Materials | Build established: Scavenger-Mutant 1176 | -9/Materials | Lost 3 parts (1n1u1w) 1355 | -9/Materials | Repaired Assault Rifle+ 1378 | -9/Materials | Discovered new exit (range 11) 1615 | -9/Materials | Entered Mines 1684 | -9/Mines | Found a hidden stash of uninstalled traps 1743 | -9/Mines | Build established: Mutant 1756 | -9/Mines | Found a Scrap Suit stashed away for nefarious purposes 1759 | -9/Mines | Found Scrap Suit 1887 | -9/Mines | Discovered new exit (range 10) 1905 | -9/Mines | Entered Materials 1905 | -8/Materials | Accompanied by 2 allies 1905 | -8/Materials | Evolved 2 slots: Utility x2 1910 | -8/Materials | Led the pair of lost Derelicts to an unsafe place 2660 | -8/Materials | Build established: Scavenger-Mutant 3048 | -8/Materials | Build established: Mutant 3129 | -8/Materials | Core integrity fell below 50% 3164 | -8/Materials | Core integrity fell below 20% 3184 | -8/Materials | Lost 6 parts (1p1n2u2w) 3193 | -8/Materials | Discovered new exit (range 16) 3680 | -8/Materials | Entered Factory 3680 | -7/Factory | Evolved 2 slots: Utility x1, Weapon x1 3694 | -7/Factory | Discovered new exit (range 8) 3987 | -7/Factory | Build established: Gunner 4194 | -7/Factory | Discovered new exit (range 11) 4235 | -7/Factory | Entered Lower Caves 4297 | -7/Lower Caves | A Derelict revealed a hidden shortcut to a safe place 4320 | -7/Lower Caves | Entered Zion 4404 | -6/Zion | Given the Hacking Drone Bay 4405 | -6/Zion | Found Prototype Device 4406 | -6/Zion | Identified Hacking Drone Bay 5086 | -6/Zion | Learned Factory emergency access door positions 5107 | -6/Zion | Learned location of Quarantine (-3) 5418 | -6/Zion | Build established: Tank 5560 | -6/Zion | Learned location of Warlord (-4) 5874 | -6/Zion | Met Imprinter 5916 | -6/Zion | Imprinted 5919 | -6/Zion | Declared Zion's savior 6411 | -6/Zion | Discovered new exit (range 13) 6446 | -6/Zion | Entered Proximity Caves 6446 | -5/Proximity Caves | Accompanied by 4 allies 6456 | -5/Proximity Caves | Learned Factory emergency access door positions 6635 | -5/Proximity Caves | Attracted the attention of an 0b10 outpost 6678 | -5/Proximity Caves | Lost 3 parts (2u1w) 6791 | -5/Proximity Caves | Lost 4 allies 7093 | -5/Proximity Caves | Build established: Scavenger-Tank 7323 | -5/Proximity Caves | Discovered new exit (range 10) 7350 | -5/Proximity Caves | Entered Factory 7350 | -5/Factory | Evolved 4 slots: Propulsion x1, Utility x2, Weapon x1 7377 | -5/Factory | Zion Fire squad teleported in 7591 | -5/Factory | Retrieved Zion intel report: Depthwide Sectors/-5 7592 | -5/Factory | Zion Light squad teleported in 7612 | -5/Factory | Lost 4 allies 7831 | -5/Factory | Found Prototype Protection 7832 | -5/Factory | Identified Zio. Weapon Casing 7854 | -5/Factory | Garrison activated, responded to threat 7901 | -5/Factory | Spotted B-75 Beast 7937 | -5/Factory | Destroyed 10 combat bots 8011 | -5/Factory | Core integrity fell below 50% 8043 | -5/Factory | Lost 17 parts (1p4n5u7w) 8161 | -5/Factory | Core integrity fell below 20% 8215 | -5/Factory | Lost 4 parts (2u2w) 8260 | -5/Factory | Sucked down chute 8260 | -5/Factory | Entered Waste 8273 | -5/Waste | Spotted C-40 Crusher 8282 | -5/Waste | Spotted C-40 Crusher 8290 | -5/Waste | Spotted C-40 Crusher 8290 | -5/Waste | Spotted C-40 Crusher 8296 | -5/Waste | Spotted C-40 Crusher 8305 | -5/Waste | Spotted C-40 Crusher 8322 | -5/Waste | Discovered new exit (range 11) 8331 | -5/Waste | Entered Factory 8442 | -5/Factory | Destroyed by G-50 Soldier with Heavy Laser Last Messages --------------- 08326_ System corrupted: Energy discharge (-43). 08329_ Acquired Adv. Cloaking Device. LOCATION=UNKNOWN GOAL=ESCAPE Loading Factory emergency access points (x31)... 08348_ Acquired Core Analyzer. 08367_ Acquired Cmb. Gravmag System. 08368_ ALERT: All DSF locations entering lockdown mode. 08371_ System corrupted: Substantial component data lost. 08381_ Penetrated by Slug. 08392_ QMQ550PI7:XE